fUST/lending_fUST_20260228
["ID","MTS","AMOUNT","RATE_DAILY","PERIOD"]
[406888708,1772267440929,-500.0,0.00013698,2]
[406888710,1772267440938,-1733.53,0.00013698,2]
[406888712,1772267440947,-500.0,0.00013698,2]
[406888714,1772267440957,-1436.12,0.00013698,2]
[406888716,1772267440966,-500.0,0.00013698,2]
[406888718,1772267440976,-500.0,0.00013698,2]
[406888720,1772267440987,-500.0,0.00013698,2]
[406888722,1772267440996,-500.0,0.00013698,2]
[406888724,1772267441005,-685.31,0.00013698,2]
[406888726,1772267441014,-580.66,0.00013698,2]
[406888728,1772267441024,-571.4,0.00013698,2]
[406888730,1772267441033,-500.0,0.00013698,2]
[406888731,1772267441042,-864.92,0.00013698,2]
[406888734,1772267441051,-846.6,0.00013698,2]
[406888735,1772267441060,-1593.78,0.00013698,2]
[406888737,1772267441070,-510.53,0.00013698,2]
[406888740,1772267441079,-750.44,0.00013698,2]
[406888741,1772267441089,-500.0,0.00013698,2]
[406888743,1772267441098,-500.0,0.00013698,2]
[406888745,1772267441108,-500.0,0.00013698,2]
[406888747,1772267441119,-1521.42,0.00013698,2]
[406888749,1772267441130,-500.0,0.00013698,2]
[406888751,1772267441139,-1247.19,0.00013698,2]
[406888753,1772267441148,-500.0,0.00013698,2]
[406888755,1772267441158,-705.82,0.00013698,2]
[406888757,1772267441167,-500.0,0.00013698,2]
[406888759,1772267441176,-529.62,0.00013698,2]
[406888761,1772267441186,-500.0,0.00013698,2]
[406888764,1772267441197,-500.0,0.00013698,2]
[406888766,1772267441206,-500.0,0.00013698,2]
[406888767,1772267441216,-500.0,0.00013698,2]
[406888769,1772267441225,-500.0,0.00013698,2]
[406888771,1772267441234,-534.45180495,0.00013698,2]
[406888773,1772267441243,-745.32,0.00013698,2]
[406888775,1772267441253,-1605.01,0.00013698,2]
[406888777,1772267441262,-500.0,0.00013698,2]
[406888780,1772267441271,-500.0,0.00013698,2]
[406888782,1772267441280,-500.0,0.00013698,2]
[406888783,1772267441291,-500.0,0.00013698,2]
[406888785,1772267441300,-1610.8,0.00013698,2]
[406888787,1772267441309,-500.0,0.00013698,2]
[406888789,1772267441319,-622.13164496,0.00013698,2]
[406888791,1772267441328,-1001.72,0.00013698,2]
[406888793,1772267441338,-627.88,0.00013698,2]
[406888795,1772267441348,-1059.56,0.00013698,2]
[406888797,1772267441358,-500.0,0.00013698,2]
[406888799,1772267441368,-917.08,0.00013698,2]
[406888801,1772267441377,-500.0,0.00013698,2]
[406888804,1772267441387,-500.0,0.00013698,2]
[406888805,1772267441397,-500.0,0.00013698,2]
[406888808,1772267441406,-529.27,0.00013698,2]
[406888810,1772267441416,-927.57,0.00013698,2]
[406888812,1772267441426,-650.87,0.00013698,2]
[406888813,1772267441436,-661.99,0.00013698,2]
[406888815,1772267441445,-4106.48,0.00013698,2]
[406888818,1772267441455,-500.0,0.00013698,2]
[406888820,1772267441464,-500.0,0.00013698,2]
[406888822,1772267441474,-818.16,0.00013698,2]
[406888823,1772267441483,-500.0,0.00013698,2]
[406888824,1772267441494,-500.0,0.00013698,2]
[406888825,1772267441503,-1219.63,0.00013698,2]
[406888826,1772267441512,-500.0,0.00013698,2]
[406888827,1772267441521,-500.0,0.00013698,2]
[406888828,1772267441530,-564.11,0.00013698,2]
[406888829,1772267441539,-500.0,0.00013698,2]
[406888830,1772267441548,-500.0,0.00013698,2]
[406888831,1772267441557,-500.0,0.00013698,2]
[406888832,1772267441567,-500.0,0.00013698,2]
[406888833,1772267441576,-500.0,0.00013698,2]
[406888834,1772267441585,-500.0,0.00013698,2]
[406888835,1772267441596,-559.24668051,0.00013698,2]
[406888837,1772267441606,-635.34741476,0.00013698,2]
[406888839,1772267441615,-500.0,0.00013698,2]
[406888841,1772267441625,-500.0,0.00013698,2]
[406888842,1772267441634,-500.0,0.00013698,2]
[406888845,1772267441644,-500.0,0.00013698,2]
[406888846,1772267441654,-773.68,0.00013698,2]
[406888848,1772267441664,-500.0,0.00013698,2]
[406888850,1772267441673,-500.0,0.00013698,2]
[406888852,1772267441683,-1058.67,0.00013698,2]
[406888854,1772267441691,-855.68,0.00013698,2]
[406888856,1772267441701,-544.13,0.00013698,2]
[406888858,1772267441710,-500.0,0.00013698,2]
[406888860,1772267441720,-1354.43,0.00013698,2]
[406888862,1772267441729,-517.72547587,0.00013698,2]
[406888864,1772267441738,-500.0,0.00013698,2]
[406888866,1772267441748,-500.0,0.00013698,2]
[406888868,1772267441757,-947.35,0.00013698,2]
[406888870,1772267441766,-500.0,0.00013698,2]
[406888872,1772267441775,-500.0,0.00013698,2]
[406888874,1772267441784,-577.2,0.00013698,2]
[406888876,1772267441793,-617.88,0.00013698,2]
[406888878,1772267441803,-1264.55,0.00013698,2]
[406888880,1772267441812,-500.0,0.00013698,2]
[406888882,1772267441821,-609.45,0.00013698,2]
[406888883,1772267441830,-500.0,0.00013698,2]
[406888884,1772267441839,-500.0,0.00013698,2]
[406888885,1772267441848,-787.95,0.00013698,2]
[406888886,1772267441857,-1665.88,0.00013698,2]
[406888887,1772267441867,-571.43,0.00013698,2]
[406888888,1772267441876,-500.0,0.00013698,2]
[406888889,1772267441885,-500.0,0.00013698,2]
[406888890,1772267441894,-7573.22,0.00013698,2]
[406888891,1772267441906,-554.61,0.00013698,2]
[406888892,1772267441915,-500.0,0.00013698,2]
[406888893,1772267441924,-500.0,0.00013698,2]
[406888894,1772267441934,-500.0,0.00013698,2]
[406888896,1772267441943,-500.0,0.00013698,2]
[406888897,1772267441952,-500.0,0.00013698,2]
[406888898,1772267441961,-500.0,0.00013698,2]
[406888899,1772267441971,-262.91634179,0.00013698,2]
[406888900,1772267441980,-1743.64,0.00013698,2]
[406888901,1772267441989,-500.0,0.00013698,2]
[406888902,1772267441998,-647.16,0.00013698,2]
[406888903,1772267442008,-2006.98,0.00013698,2]
[406888905,1772267442018,-2108.79,0.00013698,2]
[406888906,1772267442027,-500.0,0.00013698,2]
[406888908,1772267442036,-839.36,0.00013698,2]
[406888910,1772267442046,-878.12,0.00013698,2]
[406888912,1772267442055,-313.29232785,0.00013698,2]
[406888913,1772267442064,-7180.71,0.00013698,2]
[406888915,1772267442075,-784.54,0.00013698,2]
[406888916,1772267442084,-438.65225958,0.00013698,2]
[406888917,1772267442094,-500.0,0.00013698,2]
[406888918,1772267442105,-696.62,0.00013698,2]
[406888920,1772267442115,-854.66,0.00013698,2]
[406888922,1772267442125,-500.0,0.00013698,2]
[406888924,1772267442135,-1726.59,0.00013698,2]
[406888926,1772267442144,-321.0492916,0.00013698,2]
[406888928,1772267442154,-500.0,0.00013698,2]
[406888930,1772267442163,-500.0,0.00013698,2]
[406888932,1772267442174,-500.0,0.00013698,2]
[406888934,1772267442184,-500.0,0.00013698,2]
[406888936,1772267442196,-1075.35,0.00013698,2]
[406888938,1772267442206,-5780.22,0.00013698,2]
[406888940,1772267442216,-1052.35,0.00013698,2]
[406888942,1772267442226,-500.0,0.00013698,2]
[406888944,1772267442235,-1604.1,0.00013698,2]
[406888946,1772267442244,-500.0,0.00013698,2]
[406888948,1772267442253,-617.93,0.00013698,2]
[406888950,1772267442262,-1438.35,0.00013698,2]
[406888952,1772267442271,-500.0,0.00013698,2]
[406888954,1772267442280,-500.0,0.00013698,2]
[406888956,1772267442289,-500.0,0.00013698,2]
[406888958,1772267442298,-1671.97,0.00013698,2]
[406888961,1772267442308,-500.0,0.00013698,2]
[406888963,1772267442318,-500.0,0.00013698,2]
[406888965,1772267442330,-500.0,0.00013698,2]
[406888967,1772267442343,-496.61984197,0.00013698,2]
[406888972,1772267442373,-69.73015803,0.00013698,2]
[406888974,1772267442383,-444.27642496,0.00013698,2]
[406888977,1772267442396,-55.72357504,0.00013698,2]
[406888979,1772267442406,-651.77526192,0.00013698,2]
[406888981,1772267442417,-43.28473808,0.00013698,2]
[406888984,1772267442428,-500.0,0.00013698,2]
[406888987,1772267442437,-500.0,0.00013698,2]
[406888990,1772267442446,-692.56,0.00013698,2]
[406888993,1772267442456,-1703.31,0.00013698,2]
[406888996,1772267442466,-1091.8,0.00013698,2]
[406888999,1772267442475,-526.21,0.00013698,2]
[406889001,1772267442484,-1946.78,0.00013698,2]
[406889003,1772267442494,-1093.05,0.00013698,2]
[406889005,1772267442503,-522.9,0.00013698,2]
[406889007,1772267442512,-597.64,0.00013698,2]
[406889009,1772267442522,-1010.99,0.00013698,2]
[406889011,1772267442531,-632.06,0.00013698,2]
[406889013,1772267442540,-500.0,0.00013698,2]
[406889015,1772267442550,-418.12414702,0.00013698,2]
[406889017,1772267442559,-1404.24,0.00013698,2]
[406889019,1772267442569,-500.0,0.00013698,2]
[406889021,1772267442579,-3447.77,0.00013698,2]
[406889023,1772267442588,-500.0,0.00013698,2]
[406889025,1772267442597,-592.02,0.00013698,2]
[406889027,1772267442607,-500.0,0.00013698,2]
[406889029,1772267442617,-500.0,0.00013698,2]
[406889031,1772267442627,-500.0,0.00013698,2]
[406889033,1772267442636,-500.0,0.00013698,2]
[406889035,1772267442646,-1639.95,0.00013698,2]
[406889037,1772267442656,-500.0,0.00013698,2]
[406889039,1772267442665,-288.31650844,0.00013698,2]
[406889041,1772267442674,-500.0,0.00013698,2]
[406889043,1772267442684,-500.0,0.00013698,2]
[406889045,1772267442693,-500.0,0.00013698,2]
[406889047,1772267442703,-766.57,0.00013698,2]
[406889049,1772267442713,-2199.16,0.00013698,2]
[406889051,1772267442723,-500.0,0.00013698,2]
[406889053,1772267442732,-377.51054313,0.00013698,2]
[406889110,1772267443233,-137.59945687,0.00013698,2]
[406889112,1772267443242,-1033.14,0.00013698,2]
[406889114,1772267443252,-500.0,0.00013698,2]
[406889115,1772267443261,-1309.19,0.00013698,2]
[406889118,1772267443271,-1688.18,0.00013698,2]
[406889120,1772267443280,-3009.71,0.00013698,2]
[406889121,1772267443289,-1567.57,0.00013698,2]
[406889123,1772267443299,-500.0,0.00013698,2]
[406889126,1772267443308,-500.0,0.00013698,2]
[406889128,1772267443319,-500.0,0.00013698,2]
[406889130,1772267443330,-500.0,0.00013698,2]
[406889148,1772267443492,-1039.64,0.00013698,2]
[406889151,1772267443512,-500.0,0.00013698,2]
[406889153,1772267443522,-500.0,0.00013698,2]
[406889155,1772267443532,-500.0,0.00013698,2]
[406889157,1772267443542,-500.0,0.00013698,2]
[406889159,1772267443552,-578.85,0.00013698,2]
[406889161,1772267443562,-500.0,0.00013698,2]
[406889163,1772267443571,-500.0,0.00013698,2]
[406889165,1772267443581,-2382.93,0.00013698,2]
[406889168,1772267443596,-1096.15,0.00013698,2]
[406889170,1772267443606,-2151.2,0.00013698,2]
[406889172,1772267443616,-683.72,0.00013698,2]
[406889174,1772267443626,-832.49,0.00013698,2]
[406889176,1772267443635,-692.6,0.00013698,2]
[406889178,1772267443644,-500.0,0.00013698,2]
[406889180,1772267443653,-500.0,0.00013698,2]
[406889182,1772267443663,-3399.35,0.00013698,2]
[406889184,1772267443672,-500.0,0.00013698,2]
[406889186,1772267443682,-865.62,0.00013698,2]
[406889188,1772267443692,-500.0,0.00013698,2]
[406889190,1772267443702,-929.25,0.00013698,2]
[406889192,1772267443711,-500.0,0.00013698,2]
[406889194,1772267443720,-856.18,0.00013698,2]
[406889196,1772267443729,-1271.22,0.00013698,2]
[406889198,1772267443742,-1063.54,0.00013698,2]
[406889200,1772267443752,-1000.0,0.00013698,2]
[406889202,1772267443761,-500.0,0.00013698,2]
[406889204,1772267443771,-500.0,0.00013698,2]
[406889206,1772267443781,-1318.72,0.00013698,2]
[406889208,1772267443791,-109.49666603,0.00013698,2]
[406889295,1772267444753,-596.29333397,0.00013698,2]
[406889297,1772267444763,-2424.89,0.00013698,2]
[406889299,1772267444773,-1446.29,0.00013698,2]
[406889301,1772267444782,-500.0,0.00013698,2]
[406889303,1772267444792,-2361.52,0.00013698,2]
[406889306,1772267444801,-500.0,0.00013698,2]
[406889308,1772267444811,-4592.95,0.00013698,2]
[406889310,1772267444820,-500.0,0.00013698,2]
[406889312,1772267444830,-2215.2,0.00013698,2]
[406889314,1772267444839,-500.0,0.00013698,2]
[406889316,1772267444849,-500.0,0.00013698,2]
[406889318,1772267444858,-1435.8,0.00013698,2]
[406889320,1772267444868,-494.62780689,0.00013698,2]
[406889322,1772267444877,-1576.84,0.00013698,2]
[406889324,1772267444887,-495.62174639,0.00013698,2]
[406889326,1772267444896,-2561.33,0.00013698,2]
[406889328,1772267444905,-1085.51,0.00013698,2]
[406889330,1772267444915,-500.0,0.00013698,2]
[406889331,1772267444924,-500.0,0.00013698,2]
[406889333,1772267444934,-500.0,0.00013698,2]
[406889335,1772267444943,-500.0,0.00013698,2]
[406889337,1772267444953,-500.0,0.00013698,2]
[406889340,1772267444963,-717.42,0.00013698,2]
[406889342,1772267444972,-500.0,0.00013698,2]
[406889344,1772267444981,-1108.2,0.00013698,2]
[406889346,1772267444990,-500.0,0.00013698,2]
[406889348,1772267445000,-500.0,0.00013698,2]
[406889350,1772267445010,-500.0,0.00013698,2]
[406889352,1772267445019,-500.0,0.00013698,2]
[406889354,1772267445027,-3100.42,0.00013698,2]
[406889356,1772267445036,-500.0,0.00013698,2]
[406889358,1772267445046,-1341.93,0.00013698,2]
[406889360,1772267445055,-251.56542867,0.00013698,2]
[406889361,1772267445065,-484.52234569,0.00013698,2]
[406889363,1772267445074,-1305.67,0.00013698,2]
[406889365,1772267445083,-500.0,0.00013698,2]
[406889367,1772267445092,-500.0,0.00013698,2]
[406889369,1772267445102,-500.0,0.00013698,2]
[406889371,1772267445111,-3197.66,0.00013698,2]
[406889373,1772267445126,-500.0,0.00013698,2]
[406889375,1772267445136,-533.7402503,0.00013698,2]
[406889377,1772267445146,-1472.57,0.00013698,2]
[406889379,1772267445156,-500.0,0.00013698,2]
[406889381,1772267445168,-561.98,0.00013698,2]
[406889383,1772267445178,-500.0,0.00013698,2]
[406889385,1772267445189,-615.34,0.00013698,2]
[406889387,1772267445201,-699.96,0.00013698,2]
[406889389,1772267445211,-500.0,0.00013698,2]
[406889392,1772267445221,-354.63597945,0.00013698,2]
[406889395,1772267445231,-500.0,0.00013698,2]
[406889398,1772267445241,-500.0,0.00013698,2]
[406889400,1772267445251,-500.0,0.00013698,2]
[406889402,1772267445260,-1020.13,0.00013698,2]
[406889404,1772267445269,-500.0,0.00013698,2]
[406889406,1772267445279,-500.0,0.00013698,2]
[406889408,1772267445288,-500.0,0.00013698,2]
[406889410,1772267445298,-500.0,0.00013698,2]
[406889412,1772267445307,-500.0,0.00013698,2]
[406889414,1772267445317,-500.0,0.00013698,2]
[406889416,1772267445326,-500.0,0.00013698,2]
[406889418,1772267445336,-596.63,0.00013698,2]
[406889420,1772267445345,-1033.36,0.00013698,2]
[406889423,1772267445355,-500.0,0.00013698,2]
[406889425,1772267445364,-2312.35,0.00013698,2]
[406889427,1772267445374,-351.0,0.00013698,2]
[406889430,1772267445384,-242.58150042,0.00013698,2]
[406889432,1772267445393,-955.01,0.00013698,2]
[406889434,1772267445403,-806.51,0.00013698,2]
[406889436,1772267445413,-500.0,0.00013698,2]
[406889438,1772267445423,-1522.66,0.00013698,2]
[406889440,1772267445433,-500.0,0.00013698,2]
[406889442,1772267445442,-500.0,0.00013698,2]
[406889444,1772267445452,-867.0,0.00013698,2]
[406889446,1772267445462,-500.0,0.00013698,2]
[406889448,1772267445471,-7146.16,0.00013698,2]
[406889450,1772267445480,-500.0,0.00013698,2]
[406889452,1772267445490,-500.0,0.00013698,2]
[406889454,1772267445499,-500.0,0.00013698,2]
[406889456,1772267445508,-1028.35,0.00013698,2]
[406889458,1772267445518,-500.0,0.00013698,2]
[406889460,1772267445528,-1008.96,0.00013698,2]
[406889462,1772267445537,-500.0,0.00013698,2]
[406889464,1772267445549,-500.0,0.00013698,2]
[406889466,1772267445558,-1352.59,0.00013698,2]
[406889474,1772267445626,-506.03,0.00013698,2]
[406889476,1772267445635,-500.0,0.00013698,2]
[406889478,1772267445644,-500.0,0.00013698,2]
[406889480,1772267445654,-500.0,0.00013698,2]
[406889482,1772267445663,-246.84948647,0.00013698,2]
[406889484,1772267445672,-500.0,0.00013698,2]
[406889486,1772267445683,-500.0,0.00013698,2]
[406889489,1772267445692,-500.0,0.00013698,2]
[406889490,1772267445702,-500.0,0.00013698,2]
[406889492,1772267445711,-500.0,0.00013698,2]
[406889494,1772267445720,-764.41,0.00013698,2]
[406889497,1772267445730,-500.0,0.00013698,2]
[406889499,1772267445739,-500.0,0.00013698,2]
[406889500,1772267445749,-500.0,0.00013698,2]
[406889503,1772267445758,-500.0,0.00013698,2]
[406889504,1772267445767,-1761.81,0.00013698,2]
[406889506,1772267445776,-2215.04,0.00013698,2]
[406889509,1772267445786,-259.73326983,0.00013698,2]
[406889510,1772267445795,-500.0,0.00013698,2]
[406889513,1772267445809,-517.59,0.00013698,2]
[406889515,1772267445818,-517.41,0.00013698,2]
[406889517,1772267445828,-500.0,0.00013698,2]
[406889519,1772267445837,-500.0,0.00013698,2]
[406889521,1772267445847,-963.32,0.00013698,2]
[406889523,1772267445857,-700.0,0.00013698,2]
[406889525,1772267445867,-500.0,0.00013698,2]
[406889527,1772267445878,-500.0,0.00013698,2]
[406889529,1772267445888,-899.12,0.00013698,2]
[406889531,1772267445898,-500.0,0.00013698,2]
[406889534,1772267445908,-1300.35,0.00013698,2]
[406889536,1772267445918,-5319.48,0.00013698,2]
[406889538,1772267445927,-1252.77,0.00013698,2]
[406889540,1772267445937,-587.74,0.00013698,2]
[406889542,1772267445947,-1166.63,0.00013698,2]
[406889544,1772267445956,-500.0,0.00013698,2]
[406889546,1772267445966,-899.07,0.00013698,2]
[406889548,1772267445975,-2895.24,0.00013698,2]
[406889550,1772267445984,-185.70153585,0.00013698,2]
[406889552,1772267445994,-500.0,0.00013698,2]
[406889554,1772267446003,-1068.48,0.00013698,2]
[406889556,1772267446013,-968.49,0.00013698,2]
[406889558,1772267446023,-500.0,0.00013698,2]
[406889560,1772267446032,-2416.57,0.00013698,2]
[406889562,1772267446042,-1587.58,0.00013698,2]
[406889564,1772267446061,-500.0,0.00013698,2]
[406889566,1772267446079,-647.96,0.00013698,2]
[406889568,1772267446088,-500.0,0.00013698,2]
[406889570,1772267446098,-8070.28,0.00013698,2]
[406889572,1772267446107,-731.15,0.00013698,2]
[406889574,1772267446117,-500.0,0.00013698,2]
[406889576,1772267446126,-500.0,0.00013698,2]
[406889578,1772267446138,-500.0,0.00013698,2]
[406889580,1772267446148,-500.0,0.00013698,2]
[406889582,1772267446158,-500.0,0.00013698,2]
[406889584,1772267446167,-500.0,0.00013698,2]
[406889586,1772267446176,-500.0,0.00013698,2]
[406889588,1772267446187,-1997.06,0.00013698,2]
[406889590,1772267446196,-3186.98,0.00013698,2]
[406889592,1772267446207,-500.0,0.00013698,2]
[406889594,1772267446219,-3896.0,0.00013698,2]
[406889596,1772267446228,-500.0,0.00013698,2]
[406889598,1772267446237,-527.94,0.00013698,2]
[406889600,1772267446247,-989.6,0.00013698,2]
[406889602,1772267446256,-7025.66,0.00013698,2]
[406889604,1772267446266,-500.0,0.00013698,2]
[406889606,1772267446276,-682.38,0.00013698,2]
[406889608,1772267446285,-500.0,0.00013698,2]
[406889610,1772267446294,-659.28,0.00013698,2]
[406889612,1772267446304,-728.78,0.00013698,2]
[406889614,1772267446313,-898.93,0.00013698,2]
[406889616,1772267446322,-793.11,0.00013698,2]
[406889618,1772267446332,-1706.3,0.00013698,2]
[406889620,1772267446342,-362.9216763,0.00013698,2]
[406889622,1772267446351,-659.85,0.00013698,2]
[406889624,1772267446362,-500.0,0.00013698,2]
[406889626,1772267446371,-1134.79,0.00013698,2]
[406889628,1772267446382,-500.0,0.00013698,2]
[406889630,1772267446391,-500.0,0.00013698,2]
[406889632,1772267446400,-11125.25,0.00013698,2]
[406889634,1772267446410,-7153.51,0.00013698,2]
[406889637,1772267446420,-648.35,0.00013698,2]
[406889639,1772267446429,-1970.56,0.00013698,2]
[406889641,1772267446440,-5078.3,0.00013698,2]
[406889642,1772267446449,-683.43,0.00013698,2]
[406889644,1772267446459,-2723.16,0.00013698,2]
[406889646,1772267446468,-500.0,0.00013698,2]
[406889648,1772267446478,-500.0,0.00013698,2]
[406889650,1772267446488,-500.0,0.00013698,2]
[406889653,1772267446498,-4724.28,0.00013698,2]
[406889655,1772267446507,-500.0,0.00013698,2]
[406889657,1772267446517,-500.0,0.00013698,2]
[406889659,1772267446527,-500.0,0.00013698,2]
[406889661,1772267446537,-739.63,0.00013698,2]
[406889663,1772267446546,-500.0,0.00013698,2]
[406889665,1772267446555,-500.0,0.00013698,2]
[406889667,1772267446565,-500.0,0.00013698,2]
[406889669,1772267446575,-500.0,0.00013698,2]
[406889671,1772267446585,-500.0,0.00013698,2]
[406889673,1772267446595,-500.0,0.00013698,2]
[406889675,1772267446605,-4297.64,0.00013698,2]
[406889677,1772267446615,-737.38,0.00013698,2]
[406889679,1772267446624,-2549.64,0.00013698,2]
[406889681,1772267446633,-500.0,0.00013698,2]
[406889683,1772267446643,-2640.18,0.00013698,2]
[406889685,1772267446652,-500.0,0.00013698,2]
[406889688,1772267446662,-1171.08,0.00013698,2]
[406889690,1772267446672,-7472.22,0.00013698,2]
[406889692,1772267446682,-500.0,0.00013698,2]
[406889694,1772267446692,-500.0,0.00013698,2]
[406889696,1772267446701,-596.57657767,0.00013698,2]
[406889697,1772267446711,-530.37,0.00013698,2]
[406889698,1772267446720,-1765.65,0.00013698,2]
[406889699,1772267446730,-500.0,0.00013698,2]
[406889700,1772267446739,-500.0,0.00013698,2]
[406889701,1772267446749,-500.0,0.00013698,2]
[406889702,1772267446758,-500.0,0.00013698,2]
[406889703,1772267446768,-632.95186824,0.00013698,2]
[406889704,1772267446778,-1444.95,0.00013698,2]
[406889705,1772267446787,-2445.15,0.00013698,2]
[406889706,1772267446797,-4088.91,0.00013698,2]
[406889707,1772267446806,-2774.65,0.00013698,2]
[406889708,1772267446816,-500.0,0.00013698,2]
[406889710,1772267446827,-500.0,0.00013698,2]
[406889712,1772267446837,-3783.55,0.00013698,2]
[406889714,1772267446847,-199.26209788,0.00013698,2]
[406889716,1772267446857,-500.0,0.00013698,2]
[406889718,1772267446867,-500.0,0.00013698,2]
[406889721,1772267446877,-1333.68,0.00013698,2]
[406889723,1772267446887,-14153.91,0.00013698,2]
[406889725,1772267446897,-500.0,0.00013698,2]
[406889727,1772267446907,-500.0,0.00013698,2]
[406889729,1772267446916,-500.0,0.00013698,2]
[406889731,1772267446926,-395.43702206,0.00013698,2]
[406889732,1772267446936,-500.0,0.00013698,2]
[406889735,1772267446947,-3218.57,0.00013698,2]
[406889736,1772267446957,-500.0,0.00013698,2]
[406889738,1772267446967,-500.0,0.00013698,2]
[406889741,1772267446977,-2092.55,0.00013698,2]
[406889743,1772267446987,-2893.22,0.00013698,2]
[406889745,1772267446997,-2259.28,0.00013698,2]
[406889747,1772267447007,-500.0,0.00013698,2]
[406889748,1772267447016,-1798.11,0.00013698,2]
[406889751,1772267447026,-500.0,0.00013698,2]
[406889753,1772267447035,-500.0,0.00013698,2]
[406889755,1772267447044,-540.91,0.00013698,2]
[406889757,1772267447054,-500.0,0.00013698,2]
[406889759,1772267447064,-500.0,0.00013698,2]
[406889761,1772267447074,-500.0,0.00013698,2]
[406889763,1772267447083,-500.0,0.00013698,2]
[406889765,1772267447093,-500.0,0.00013698,2]
[406889767,1772267447103,-16752.77,0.00013698,2]
[406889769,1772267447113,-500.0,0.00013698,2]
[406889771,1772267447124,-1638.09,0.00013698,2]
[406889773,1772267447136,-500.0,0.00013698,2]
[406889775,1772267447147,-4470.34,0.00013698,2]
[406889777,1772267447157,-570.84760615,0.00013698,2]
[406889779,1772267447168,-500.97,0.00013698,2]
[406889781,1772267447178,-500.0,0.00013698,2]
[406889783,1772267447188,-526.47,0.00013698,2]
[406889785,1772267447201,-500.0,0.00013698,2]
[406889787,1772267447210,-500.0,0.00013698,2]
[406889790,1772267447220,-2160.15,0.00013698,2]
[406889792,1772267447230,-500.0,0.00013698,2]
[406889794,1772267447239,-500.0,0.00013698,2]
[406889796,1772267447249,-500.0,0.00013698,2]
[406889798,1772267447258,-587.54,0.00013698,2]
[406889800,1772267447268,-611.61,0.00013698,2]
[406889802,1772267447279,-679.97,0.00013698,2]
[406889804,1772267447288,-500.0,0.00013698,2]
[406889806,1772267447298,-62454.68,0.00013698,2]
[406889808,1772267447309,-4931.54,0.00013698,2]
[406889810,1772267447319,-500.0,0.00013698,2]
[406889812,1772267447329,-691.25,0.00013698,2]
[406889814,1772267447339,-500.0,0.00013698,2]
[406889816,1772267447349,-500.0,0.00013698,2]
[406889818,1772267447359,-2603.07,0.00013698,2]
[406889820,1772267447370,-7026.09,0.00013698,2]
[406889822,1772267447380,-500.0,0.00013698,2]
[406889824,1772267447390,-668.0,0.00013698,2]
[406889826,1772267447400,-1193.68,0.00013698,2]
[406889829,1772267447410,-635.83,0.00013698,2]
[406889831,1772267447420,-500.0,0.00013698,2]
[406889833,1772267447429,-500.0,0.00013698,2]
[406889835,1772267447439,-1018.54,0.00013698,2]
[406889837,1772267447449,-500.0,0.00013698,2]
[406889839,1772267447459,-500.0,0.00013698,2]
[406889841,1772267447470,-8795.12,0.00013698,2]
[406889843,1772267447481,-500.0,0.00013698,2]